{"text_format":"1","workbook":"xlsx","n_sheets":1,"sheets":["ADHERENTS 2022"],"not_rendered":{"charts":0,"images":1,"macros":0,"external_links":0,"defined_names":3,"comments":0,"pivot_tables":0},"unopened":[],"bounds":{"document_bytes":16777216,"sheet_cells":100000,"rows_first":2000,"rows_last":500,"rows_between":2000,"halvings":0,"cell_chars":16384,"cell_head_chars":4096},"cells_cut":0,"cells_raw":0,"read":"whole","date_system":"1900"}

{"sheet":"ADHERENTS 2022","index":0,"n_rows":258,"n_cols":8,"rows_kept":258,"cut":false,"hidden":false,"merged":[[169,4,170,4],[178,4,179,4],[205,6,206,6],[185,0,186,0],[215,3,216,3],[209,2,210,2],[209,3,210,3],[211,2,212,2],[211,3,212,3],[213,2,214,2],[175,3,176,3],[175,6,176,6],[178,0,179,0],[215,2,216,2],[198,2,199,2],[205,1,206,1],[205,2,206,2],[188,2,189,2],[188,3,189,3],[188,6,189,6],[211,6,212,6],[213,6,214,6],[193,6,194,6],[201,0,202,0],[201,6,202,6],[185,6,186,6],[165,3,166,3],[181,3,182,3],[138,0,139,0],[138,6,139,6],[142,6,143,6],[159,3,160,3],[159,6,160,6],[153,3,154,3],[144,3,145,3],[198,0,199,0],[198,1,199,1],[191,0,192,0],[191,1,192,1],[191,2,192,2],[185,1,186,1],[185,2,186,2],[201,1,202,1],[201,2,202,2],[188,1,189,1],[138,2,139,2],[165,0,166,0],[165,1,166,1],[136,0,137,0],[136,1,137,1],[124,2,125,2],[110,0,111,0],[110,1,111,1],[134,1,135,1],[128,2,129,2],[169,0,170,0],[169,1,170,1],[169,2,170,2],[165,2,166,2],[142,2,143,2],[142,1,143,1],[159,1,160,1],[159,2,160,2],[146,2,147,2],[149,2,150,2],[144,2,145,2],[163,0,164,0],[142,0,143,0],[161,1,162,1],[161,2,162,2],[163,2,164,2],[9,6,10,6],[15,2,16,2],[21,2,22,2],[21,3,22,3],[21,6,22,6],[11,2,12,2],[11,6,12,6],[13,1,14,1],[13,2,14,2],[13,6,14,6],[17,2,18,2],[17,6,18,6],[0,2,0,5],[2,2,2,5],[1,2,1,5],[9,2,10,2],[27,0,28,0],[134,0,135,0],[118,0,119,0],[112,0,113,0],[102,0,103,0],[86,0,87,0],[73,0,74,0],[64,0,65,0],[50,0,51,0],[44,0,45,0],[90,0,91,0],[122,0,123,0],[100,0,101,0],[105,0,106,0],[107,0,108,0],[66,0,67,0],[69,0,70,0],[6,2,7,2],[6,3,7,3],[3,2,4,5],[255,0,256,0],[253,0,254,0],[251,0,252,0],[243,0,244,0],[240,0,241,0],[236,0,237,0],[229,0,230,0],[226,0,227,0],[205,0,206,0],[248,0,249,0],[238,0,239,0],[138,1,139,1],[134,6,135,6],[118,2,119,2],[118,3,119,3],[136,2,137,2],[134,2,135,2],[105,1,106,1],[107,1,108,1],[107,2,108,2],[114,2,115,2],[118,1,119,1],[112,6,113,6],[112,1,113,1],[118,6,119,6],[122,1,123,1],[122,2,123,2],[46,6,47,6],[48,2,49,2],[56,2,57,2],[56,6,57,6],[58,2,59,2],[105,6,106,6],[105,3,106,3],[73,1,74,1],[73,2,74,2],[105,2,106,2],[98,2,99,2],[86,2,87,2],[86,1,87,1],[82,2,83,2],[13,0,14,0],[46,2,47,2],[34,2,35,2],[44,1,45,1],[44,2,45,2],[50,1,51,1],[66,1,67,1],[66,2,67,2],[39,2,40,2],[34,1,35,1],[34,0,35,0],[50,2,51,2],[27,1,28,1],[27,2,28,2],[31,2,32,2],[243,6,244,6],[253,1,254,1],[253,2,254,2],[251,3,252,3],[253,3,254,3],[251,6,252,6],[253,6,254,6],[243,1,244,1],[243,2,244,2],[251,1,252,1],[251,2,252,2],[245,6,246,6],[255,2,256,2],[255,1,256,1],[238,1,239,1],[238,2,239,2],[226,1,227,1],[226,2,227,2],[181,2,182,2],[163,1,164,1],[173,2,174,2],[178,1,179,1],[178,2,179,2],[248,1,249,1],[248,2,249,2],[175,1,176,1],[175,2,176,2],[240,2,241,2],[245,1,246,1],[245,2,246,2],[240,1,241,1],[88,2,89,2],[96,2,97,2],[100,2,101,2],[100,3,101,3],[124,6,125,6],[130,2,131,2],[130,3,131,3],[130,6,131,6],[163,6,164,6],[114,6,115,6],[153,6,154,6],[122,6,123,6],[100,6,101,6],[112,2,113,2],[75,2,76,2],[75,6,76,6],[173,6,174,6],[73,6,74,6],[84,2,85,2],[50,6,51,6],[236,1,237,1],[221,6,222,6],[128,6,129,6],[161,6,162,6],[234,6,235,6],[110,2,111,2],[110,6,111,6],[98,6,99,6],[78,2,79,2],[78,6,79,6],[82,3,83,3],[82,6,83,6],[90,2,91,2],[90,6,91,6],[96,6,97,6],[110,3,111,3],[107,6,108,6],[191,6,192,6],[71,0,72,0],[71,2,72,2],[71,6,72,6],[54,2,55,2],[54,3,55,3],[54,6,55,6],[62,2,63,2],[62,3,63,3],[64,2,65,2],[64,1,65,1],[64,6,65,6],[69,2,70,2],[69,1,70,1],[71,1,72,1],[39,6,40,6],[19,0,20,0],[19,1,20,1],[19,2,20,2],[19,3,20,3],[19,6,20,6],[23,2,24,2],[23,3,24,3],[23,6,24,6],[25,2,26,2],[25,6,26,6],[90,1,91,1],[102,2,103,2],[102,1,103,1],[236,2,237,2],[236,3,237,3],[226,6,227,6],[229,1,230,1],[215,6,216,6],[219,2,220,2],[219,6,220,6],[217,2,218,2],[217,6,218,6],[232,2,233,2],[232,6,233,6],[229,2,230,2],[221,2,222,2],[223,2,224,2],[223,3,224,3],[234,2,235,2],[153,2,154,2],[151,2,152,2],[151,6,152,6],[193,2,194,2],[223,6,224,6]]}
[null,null,"ASSOCIATION FAMILIALE ISTREENNE 14C rue des PEIRES 13800 ISTRES"]
[null,null,"associationfamilialeistreenne2@gmail,com"]
[null,null,"06 98 89 90 84"]
[null,null,"LISTE DE ADHERENTS ",null,null,null,"Nombre d'adhérents","Code couleur"]
[null,null,null,null,null,null,{"$f":" COUNTA($B:$B)","v":204}]
[null,null,null,null,null,null,{"$f":"COUNTIF(H7:H258,42)","v":163}]
[null,"ALARCON Antoine",null,null,null,null,null,{"$f":"CodeCouleur","v":0}]
[null,"ALARCON Marie Claude",null,null,null,null,null,{"$f":"CodeCouleur","v":0}]
[null,"AMRANI Zahia",null,null,null,null,null,{"$f":"CodeCouleur","v":0}]
[null,"ANSELMINO Lucien",null,null,null,null,null,{"$f":"CodeCouleur","v":0}]
[null,"ANSELMINO Rejane",null,null,null,null,null,{"$f":"CodeCouleur","v":0}]
[null,"AQUARONNE Colette",null,null,null,null,null,{"$f":"CodeCouleur","v":42}]
[null,"AQUARONNE Emile",null,null,null,null,null,{"$f":"CodeCouleur","v":42}]
[null,"ARCOS Ramona",null,null,null,null,null,{"$f":"CodeCouleur","v":42}]
[null,null,null,null,null,null,null,{"$f":"CodeCouleur","v":2}]
[null,"AUDIBERT Annie",null,null,null,null,null,{"$f":"CodeCouleur","v":0}]
[null,"AUDIBERT Gilbert",null,null,null,null,null,{"$f":"CodeCouleur","v":0}]
[null,"BARISSONI Dominique",null,null,null,null,null,{"$f":"CodeCouleur","v":42}]
[null,"BARISSONI Gérard",null,null,null,null,null,{"$f":"CodeCouleur","v":42}]
[null,"BEAUD Maria",null,null,null,null,null,{"$f":"CodeCouleur","v":0}]
[null,null,null,null,null,null,null,{"$f":"CodeCouleur","v":0}]
[null,"BENITEZ Athina",null,null,null,null,null,{"$f":"CodeCouleur","v":42}]
[null,"BENITEZ Claude",null,null,null,null,null,{"$f":"CodeCouleur","v":42}]
[null,"BICHERON Jeanny",null,null,null,null,null,{"$f":"CodeCouleur","v":42}]
[null,"BICHERON Joël",null,null,null,null,null,{"$f":"CodeCouleur","v":42}]
[null,"BLANCHON Brigitte",null,null,null,null,null,{"$f":"CodeCouleur","v":42}]
[null,"BLANCHON Johny",null,null,null,null,null,{"$f":"CodeCouleur","v":42}]
[null,"BONDENET Jacqueline",null,null,null,null,null,{"$f":"CodeCouleur","v":42}]
[null,null,null,null,null,null,null,{"$f":"CodeCouleur","v":2}]
[null,"BOUSSUGÉ Josette",null,null,null,null,null,{"$f":"CodeCouleur","v":42}]
[null,"BRIAN Pierrette",null,null,null,null,null,{"$f":"CodeCouleur","v":42}]
[null,"BROUSSE Odette",null,null,null,null,null,{"$f":"CodeCouleur","v":0}]
[null,"BROUSSE Patricia",null,null,null,null,null,{"$f":"CodeCouleur","v":0}]
[null,"CALDIN Brigitte",null,null,null,null,null,{"$f":"CodeCouleur","v":0}]
[null,"CARDENA Josiane",null,null,null,null,null,{"$f":"CodeCouleur","v":0}]
[null,null,null,null,null,null,null,{"$f":"CodeCouleur","v":0}]
[null,"CATAUDELLA Gérard",null,null,null,null,null,{"$f":"CodeCouleur","v":42}]
[null,"CATONI Monique",null,null,null,null,null,{"$f":"CodeCouleur","v":42}]
[null,"CAYRE Marie Claude",null,null,null,null,null,{"$f":"CodeCouleur","v":42}]
[null,"CAZEEL Gisele",null,null,null,null,null,{"$f":"CodeCouleur","v":42}]
[null,"CAZEEL Pierre",null,null,null,null,null,{"$f":"CodeCouleur","v":42}]
[null,"CERRUTI Jean-Claude",null,null,null,null,null,{"$f":"CodeCouleur","v":42}]
[null,"CHAPUS Corinne",null,null,null,null,null,{"$f":"CodeCouleur","v":42}]
[null,"CHARLES Anne",null,null,null,null,null,{"$f":"CodeCouleur","v":42}]
[null,"CHIOUSSE Marie-Therese",null,null,null,null,null,{"$f":"CodeCouleur","v":42}]
[null,null,null,null,null,null,null,{"$f":"CodeCouleur","v":2}]
[null,"CHIRON Antoinette",null,null,null,null,null,{"$f":"CodeCouleur","v":42}]
[null,"CHIRON Michel",null,null,null,null,null,{"$f":"CodeCouleur","v":42}]
[null,"CONAN Helene",null,null,null,null,null,{"$f":"CodeCouleur","v":42}]
[null,"CONAN Joseph",null,null,null,null,null,{"$f":"CodeCouleur","v":42}]
[null,"COPPOLA Elvire",null,null,null,null,null,{"$f":"CodeCouleur","v":42}]
[null,null,null,null,null,null,null,{"$f":"CodeCouleur","v":2}]
[null,"CORSO Téofila",null,null,null,null,null,{"$f":"CodeCouleur","v":42}]
[null,"COURTY-VERSTAVEL Marie",null,null,null,null,null,{"$f":"CodeCouleur","v":42}]
[null,"CRECHET Monique",null,null,null,null,null,{"$f":"CodeCouleur","v":42}]
[null,"CRECHET Patrick",null,null,null,null,null,{"$f":"CodeCouleur","v":42}]
[null,"CRISTOFIS Marie Josée",null,null,null,null,null,{"$f":"CodeCouleur","v":42}]
[null,"CRISTOFIS Nicolas",null,null,null,null,null,{"$f":"CodeCouleur","v":42}]
[null,"CRIVELO Denise",null,null,null,null,null,{"$f":"CodeCouleur","v":0}]
[null,"CRIVELO Elie",null,null,null,null,null,{"$f":"CodeCouleur","v":0}]
[null,"CROZE Rémi",null,null,null,null,null,{"$f":"CodeCouleur","v":42}]
[null,"CUMAKIS SUZY",null,null,null,null,null,{"$f":"CodeCouleur","v":0}]
[null,"DECORDE Bernard",null,null,null,null,null,{"$f":"CodeCouleur","v":42}]
[null,"DECORDE Corine",null,null,null,null,null,{"$f":"CodeCouleur","v":42}]
[null,"DELFORGE Armelle",null,null,null,null,null,{"$f":"CodeCouleur","v":0}]
[null,null,null,null,null,null,null,{"$f":"CodeCouleur","v":0}]
[null,"DESMET Isabelle",null,null,null,null,null,{"$f":"CodeCouleur","v":0}]
[null,null,null,null,null,null,null,{"$f":"CodeCouleur","v":0}]
[null,"DEVINCK Chantal",null,null,null,null,null,{"$f":"CodeCouleur","v":42}]
[null,"DICHANT Marie-Josée",null,null,null,null,null,{"$f":"CodeCouleur","v":42}]
[null,null,null,null,null,null,null,{"$f":"CodeCouleur","v":2}]
[null,"DOURGIAN Claudette",null,null,null,null,null,{"$f":"CodeCouleur","v":42}]
[null,null,null,null,null,null,null,{"$f":"CodeCouleur","v":2}]
[null,"DUBOURG Yvette ",null,null,null,null,null,{"$f":"CodeCouleur","v":42}]
[null,null,null,null,null,null,null,{"$f":"CodeCouleur","v":2}]
[null,"DUMAS Christian",null,null,null,null,null,{"$f":"CodeCouleur","v":42}]
[null,"DUMAS Mireille",null,null,null,null,null,{"$f":"CodeCouleur","v":42}]
[null,"DUSSERRE Michael",null,null,null,null,null,{"$f":"CodeCouleur","v":0}]
[null,"ESCOLANO Gorges",null,null,null,null,null,{"$f":"CodeCouleur","v":42}]
[null,"ESCOLANO Marie-Thérèse",null,null,null,null,null,{"$f":"CodeCouleur","v":42}]
[null,"FALALA Fernande",null,null,null,null,null,{"$f":"CodeCouleur","v":42}]
[null,"FANTINO  Josiane",null,null,null,null,null,{"$f":"CodeCouleur","v":42}]
[null,"FANTONE Marc",null,null,null,null,null,{"$f":"CodeCouleur","v":42}]
[null,"FANTONE Marie-Claude",null,null,null,null,null,{"$f":"CodeCouleur","v":42}]
[null,"FANTONE Monique",null,null,null,null,null,{"$f":"CodeCouleur","v":42}]
[null,"FANTONE Pierre",null,null,null,null,null,{"$f":"CodeCouleur","v":42}]
[null,"FELIUS Elise",null,null,null,null,null,{"$f":"CodeCouleur","v":42}]
[null,null,null,null,null,null,null,{"$f":"CodeCouleur","v":2}]
[null,"FERNANDEZ PERES Francisco",null,null,null,null,null,{"$f":"CodeCouleur","v":42}]
[null,"FERNANDEZ PERES Maria",null,null,null,null,null,{"$f":"CodeCouleur","v":42}]
[null,"FLAMENT Bruno",null,null,null,null,null,{"$f":"CodeCouleur","v":42}]
[null,null,null,null,null,null,null,{"$f":"CodeCouleur","v":2}]
[null,"FLORES Francis ",null,null,null,null,null,{"$f":"CodeCouleur","v":0}]
[null,"FONDI Jacqueline",null,null,null,null,null,{"$f":"CodeCouleur","v":42}]
[null,"FOUQUE Aline",null,null,null,null,null,{"$f":"CodeCouleur","v":42}]
[null,"FRANCISCO Maria",null,null,null,null,null,{"$f":"CodeCouleur","v":0}]
[null,"FULCRAN Annie",null,null,null,null,null,{"$f":"CodeCouleur","v":42}]
[null,"FULCRAN Charles",null,null,null,null,null,{"$f":"CodeCouleur","v":42}]
[null,"GALLIGANI Michèle",null,null,null,null,null,{"$f":"CodeCouleur","v":42}]
[null,"GALLIGANI René",null,null,null,null,null,{"$f":"CodeCouleur","v":42}]
[null,"GASTON Claude",null,null,null,null,null,{"$f":"CodeCouleur","v":42}]
[null,"GASTON Robert",null,null,null,null,null,{"$f":"CodeCouleur","v":42}]
[null,"GERBAUDO Albert",null,null,null,null,null,{"$f":"CodeCouleur","v":0}]
[null,null,null,null,null,null,null,{"$f":"CodeCouleur","v":0}]
[null,"GHISLAIN Chantal",null,null,null,null,null,{"$f":"CodeCouleur","v":42}]
[null,"GIAMBRONE Henriette",null,null,null,null,null,{"$f":"CodeCouleur","v":42}]
[null,null,null,null,null,null,null,{"$f":"CodeCouleur","v":2}]
[null,"GOMEZ Renée",null,null,null,null,null,{"$f":"CodeCouleur","v":42}]
[null,null,null,null,null,null,null,{"$f":"CodeCouleur","v":2}]
[null,"GONON Susy",null,null,null,null,null,{"$f":"CodeCouleur","v":0}]
[null,"GROS Christine",null,null,null,null,null,{"$f":"CodeCouleur","v":42}]
[null,null,null,null,null,null,null,{"$f":"CodeCouleur","v":2}]
[null,"GROS Jean-Pierre",null,null,null,null,null,{"$f":"CodeCouleur","v":42}]
[null,null,null,null,null,null,null,{"$f":"CodeCouleur","v":2}]
[null,"GUIGOU Marie-Carmen",null,null,null,null,null,{"$f":"CodeCouleur","v":42}]
[null,"GUIGOU Max",null,null,null,null,null,{"$f":"CodeCouleur","v":42}]
[null,"GUIGUE DANIEL",null,null,null,null,null,{"$f":"CodeCouleur","v":42}]
[null,"HAUPERT Nelly",null,null,null,null,null,{"$f":"CodeCouleur","v":0}]
[null,"HERBETH Josiane",null,null,null,null,null,{"$f":"CodeCouleur","v":42}]
[null,null,null,null,null,null,null,{"$f":"CodeCouleur","v":2}]
[null,"HUERTAS Jacqueline",null,null,null,null,null,{"$f":"CodeCouleur","v":0}]
[null,"HUSS Martine",null,null,null,null,null,{"$f":"CodeCouleur","v":0}]
[null,"IMBERT Jeanine",null,null,null,null,null,{"$f":"CodeCouleur","v":42}]
[null,null,null,null,null,null,null,{"$f":"CodeCouleur","v":2}]
[null,"JAMGOTCHIAN Lionel",null,null,null,null,null,{"$f":"CodeCouleur","v":42}]
[null,"JAMGOTCHIAN Nadine",null,null,null,null,null,{"$f":"CodeCouleur","v":42}]
[null,"JAURAS Marie",null,null,null,null,null,{"$f":"CodeCouleur","v":42}]
[null,"JEHAN Simone",null,null,null,null,null,{"$f":"CodeCouleur","v":42}]
[null,"KRANTZ Nicole",null,null,null,null,null,{"$f":"CodeCouleur","v":42}]
[null,"KRANTZ Paul",null,null,null,null,null,{"$f":"CodeCouleur","v":42}]
[null,"KREUTSER Georges",null,null,null,null,null,{"$f":"CodeCouleur","v":42}]
[null,"KREUTSER Domi",null,null,null,null,null,{"$f":"CodeCouleur","v":42}]
[null,"LAFFONT Louise",null,null,null,null,null,{"$f":"CodeCouleur","v":42}]
[null,"LAISSUS Emilie",null,null,null,null,null,{"$f":"CodeCouleur","v":42}]
[null,"LALIN Marie",null,null,null,null,null,{"$f":"CodeCouleur","v":42}]
[null,null,null,null,null,null,null,{"$f":"CodeCouleur","v":2}]
[null,"LAMBERT Mireille",null,null,null,null,null,{"$f":"CodeCouleur","v":42}]
[null,null,null,null,null,null,null,{"$f":"CodeCouleur","v":2}]
[null,"LARROSA Monique",null,null,null,null,null,{"$f":"CodeCouleur","v":42}]
[null,null,null,null,null,null,null,{"$f":"CodeCouleur","v":2}]
[null,"LASSALLE Marylène",null,null,null,null,null,{"$f":"CodeCouleur","v":42}]
[null,"LEBAR Catherine",null,null,null,null,null,{"$f":"CodeCouleur","v":42}]
[null,"LEBLANC Monique",null,null,null,null,null,{"$f":"CodeCouleur","v":42}]
[null,null,null,null,null,null,null,{"$f":"CodeCouleur","v":2}]
[null,"LEGARÇON Karine",null,null,null,null,null,{"$f":"CodeCouleur","v":42}]
[null,"LEGARÇON Ludovic",null,null,null,null,null,{"$f":"CodeCouleur","v":42}]
[null,"LEMBO Jeanne",null,null,null,null,null,{"$f":"CodeCouleur","v":42}]
[null,"LEMBO Yves",null,null,null,null,null,{"$f":"CodeCouleur","v":42}]
[null,"LEVEILLE Jeanine",null,null,null,null,null,{"$f":"CodeCouleur","v":42}]
[null,"LIARDET Marie",null,null,null,null,null,{"$f":"CodeCouleur","v":42}]
[null,"LIARDET Yves",null,null,null,null,null,{"$f":"CodeCouleur","v":42}]
[null,"LIMAGNE Annie",null,null,null,null,null,{"$f":"CodeCouleur","v":42}]
[null,"LIMAGNE Daniel",null,null,null,null,null,{"$f":"CodeCouleur","v":42}]
[null,"LLERA Cecile",null,null,null,null,null,{"$f":"CodeCouleur","v":42}]
[null,"LLERA Louis",null,null,null,null,null,{"$f":"CodeCouleur","v":42}]
[null,"LLORENS André",null,null,null,null,null,{"$f":"CodeCouleur","v":42}]
[null,"LLORENS Patrick",null,null,null,null,null,{"$f":"CodeCouleur","v":42}]
[null,"LLORENTE Henriette",null,null,null,null,null,{"$f":"CodeCouleur","v":42}]
[null,"LUCHEZ Nicole",null,null,null,null,null,{"$f":"CodeCouleur","v":2}]
[null,"LUCCHESI Daniele",null,null,null,null,null,{"$f":"CodeCouleur","v":42}]
[null,null,null,null,null,null,null,{"$f":"CodeCouleur","v":2}]
[null,"MADEC Colette",null,null,null,null,null,{"$f":"CodeCouleur","v":42}]
[null,null,null,null,null,null,null,{"$f":"CodeCouleur","v":2}]
[null,"MAINE Chantal",null,null,null,null,null,{"$f":"CodeCouleur","v":42}]
[null,null,null,null,null,null,null,{"$f":"CodeCouleur","v":2}]
[null,"MARGAILLAN Michèle",null,null,null,null,null,{"$f":"CodeCouleur","v":42}]
[null,null,null,null,null,null,null,{"$f":"CodeCouleur","v":2}]
[null,"MARLE Jeannette",null,null,null,null,null,{"$f":"CodeCouleur","v":42}]
[null,"MARQUES Manuel",null,null,null,null,null,{"$f":"CodeCouleur","v":0}]
[null,"MARTIN Nicole",null,null,null,null,null,{"$f":"CodeCouleur","v":0}]
[null,null,null,null,null,null,null,{"$f":"CodeCouleur","v":0}]
[null,"MARTINEZ Antoinette",null,null,null,null,null,{"$f":"CodeCouleur","v":0}]
[null,"MARTINEZ Thérèse",null,null,null,null,null,{"$f":"CodeCouleur","v":42}]
[null,"MASCLOT Norbert",null,null,null,null,null,{"$f":"CodeCouleur","v":42}]
[null,"MASCLOT Rosa",null,null,null,null,null,{"$f":"CodeCouleur","v":42}]
[null,"MAZET Marie-Jo",null,null,null,null,null,{"$f":"CodeCouleur","v":42}]
[null,null,null,null,null,null,null,{"$f":"CodeCouleur","v":2}]
[null,"MEIFFRE Simone",null,null,null,null,null,{"$f":"CodeCouleur","v":0}]
[null,"MENNITI Gerard",null,null,null,null,null,{"$f":"CodeCouleur","v":0}]
[null,null,null,null,null,null,null,{"$f":"CodeCouleur","v":0}]
[null,"MILLOT Chantal",null,null,null,null,null,{"$f":"CodeCouleur","v":42}]
[null,"MONFERRER Georges",null,null,null,null,null,{"$f":"CodeCouleur","v":42}]
[null,"MONFERRER Josiane",null,null,null,null,null,{"$f":"CodeCouleur","v":42}]
[null,"MORET Pierrette",null,null,null,null,null,{"$f":"CodeCouleur","v":42}]
[null,"MOYA Manuel",null,null,null,null,null,{"$f":"CodeCouleur","v":0}]
[null,"MULLER Astride",null,null,null,null,null,{"$f":"CodeCouleur","v":42}]
[null,null,null,null,null,null,null,{"$f":"CodeCouleur","v":2}]
[null,"MULLER-RAMBERT Nathalie",null,null,null,null,null,{"$f":"CodeCouleur","v":42}]
[null,"OLIVE Aurelie",null,null,null,null,null,{"$f":"CodeCouleur","v":42}]
[null,null,null,null,null,null,null,{"$f":"CodeCouleur","v":2}]
[null,"OSSOLA Genevieve",null,null,null,null,null,{"$f":"CodeCouleur","v":42}]
[null,"PARISOT Roger ",null,null,null,null,null,{"$f":"CodeCouleur","v":42}]
[null,null,null,null,null,null,null,{"$f":"CodeCouleur","v":2}]
[null,"PASTOR Jean-Louis",null,null,null,null,null,{"$f":"CodeCouleur","v":42}]
[null,"PASTOR Simone",null,null,null,null,null,{"$f":"CodeCouleur","v":42}]
[null,"PAYS Annick",null,null,null,null,null,{"$f":"CodeCouleur","v":0}]
[null,"PEQUIGNOT Vincente",null,null,null,null,null,{"$f":"CodeCouleur","v":42}]
[null,"PEREZ Marie France",null,null,null,null,null,{"$f":"CodeCouleur","v":0}]
[null,"PEREZ Sylviane",null,null,null,null,null,{"$f":"CodeCouleur","v":42}]
[null,null,null,null,null,null,null,{"$f":"CodeCouleur","v":2}]
[null,"PLANTEVIN Nicole",null,null,null,null,null,{"$f":"CodeCouleur","v":42}]
[null,"PORQUET Claudine",null,null,null,null,null,{"$f":"CodeCouleur","v":42}]
[null,null,null,null,null,null,null,{"$f":"CodeCouleur","v":2}]
[null,"RAMIREZ Angel",null,null,null,null,null,{"$f":"CodeCouleur","v":42}]
[null,"REBONDY Jeanine",null,null,null,null,null,{"$f":"CodeCouleur","v":42}]
[null,"REINERT Françoise",null,null,null,null,null,{"$f":"CodeCouleur","v":42}]
[null,null,null,null,null,null,null,{"$f":"CodeCouleur","v":2}]
[null,"RESSEGUERE Audrey",null,null,null,null,null,{"$f":"CodeCouleur","v":0}]
[null,"RICHARD Denise",null,null,null,null,null,{"$f":"CodeCouleur","v":42}]
[null,"ROSELLO Jean Noel",null,null,null,null,null,{"$f":"CodeCouleur","v":42}]
[null,"ROSELLO Nicole",null,null,null,null,null,{"$f":"CodeCouleur","v":42}]
[null,"SAHAJDAK Jean",null,null,null,null,null,{"$f":"CodeCouleur","v":42}]
[null,"SAHAJDAK Jeanne",null,null,null,null,null,{"$f":"CodeCouleur","v":42}]
[null,"SALIBA Annick",null,null,null,null,null,{"$f":"CodeCouleur","v":42}]
[null,"SALIBA Jean-Yves",null,null,null,null,null,{"$f":"CodeCouleur","v":42}]
[null,"SALOU Jean-Marc",null,null,null,null,null,{"$f":"CodeCouleur","v":0}]
[null,"SALOU Maryse",null,null,null,null,null,{"$f":"CodeCouleur","v":0}]
[null,"SANTARNECCHI Carmen",null,null,null,null,null,{"$f":"CodeCouleur","v":42}]
[null,"SANTARNECCHI Michel",null,null,null,null,null,{"$f":"CodeCouleur","v":42}]
[null,"SANTINI Christiane",null,null,null,null,null,{"$f":"CodeCouleur","v":42}]
[null,"SANTINI Patrick",null,null,null,null,null,{"$f":"CodeCouleur","v":42}]
[null,"SAURA Daniel",null,null,null,null,null,{"$f":"CodeCouleur","v":42}]
[null,"SAURA M-Thérèse",null,null,null,null,null,{"$f":"CodeCouleur","v":42}]
[null,"SOLANO Joëlle",null,null,null,null,null,{"$f":"CodeCouleur","v":42}]
[null,"SOLANO José",null,null,null,null,null,{"$f":"CodeCouleur","v":42}]
[null,"SOLER Angèle",null,null,null,null,null,{"$f":"CodeCouleur","v":42}]
[null,"SOLER Sylvia",null,null,null,null,null,{"$f":"CodeCouleur","v":42}]
[null,null,null,null,null,null,null,{"$f":"CodeCouleur","v":2}]
[null,"SORENTINO Jacqueline",null,null,null,null,null,{"$f":"CodeCouleur","v":42}]
[null,"SOSNA Gisèle",null,null,null,null,null,{"$f":"CodeCouleur","v":42}]
[null,null,null,null,null,null,null,{"$f":"CodeCouleur","v":2}]
[null,"SOUCHET Marie-Jeanne",null,null,null,null,null,{"$f":"CodeCouleur","v":42}]
[null,"SPYRIDONOS Aristide",null,null,null,null,null,{"$f":"CodeCouleur","v":42}]
[null,"SPYRIDONOS Michèle",null,null,null,null,null,{"$f":"CodeCouleur","v":42}]
[null,"STEFANINI Colette",null,null,null,null,null,{"$f":"CodeCouleur","v":42}]
[null,"STEFANINI Jean-Luc",null,null,null,null,null,{"$f":"CodeCouleur","v":42}]
[null,"TANCREDI Colette",null,null,null,null,null,{"$f":"CodeCouleur","v":42}]
[null,null,null,null,null,null,null,{"$f":"CodeCouleur","v":2}]
[null,"TERONES Solange",null,null,null,null,null,{"$f":"CodeCouleur","v":0}]
[null,null,null,null,null,null,null,{"$f":"CodeCouleur","v":0}]
[null,"THIL Marthe",null,null,null,null,null,{"$f":"CodeCouleur","v":42}]
[null,null,null,null,null,null,null,{"$f":"CodeCouleur","v":2}]
[null,"TÓRE Carmen",null,null,null,null,null,{"$f":"CodeCouleur","v":0}]
[null,"TOULOUSE Christiane",null,null,null,null,null,{"$f":"CodeCouleur","v":42}]
[null,null,null,null,null,null,null,{"$f":"CodeCouleur","v":2}]
[null,"TRAQUET Mireille",null,null,null,null,null,{"$f":"CodeCouleur","v":42}]
[null,null,null,null,null,null,null,{"$f":"CodeCouleur","v":2}]
[null,"TRONC Monique",null,null,null,null,null,{"$f":"CodeCouleur","v":42}]
[null,"VANDERBRUM René",null,null,null,null,null,{"$f":"CodeCouleur","v":0}]
[null,null,null,null,null,null,null,{"$f":"CodeCouleur","v":0}]
[null,"VANHEY Anita",null,null,null,null,null,{"$f":"CodeCouleur","v":0}]
[null,"VANHEY Daniele",null,null,null,null,null,{"$f":"CodeCouleur","v":42}]
[null,null,null,null,null,null,null,{"$f":"CodeCouleur","v":2}]
[null,"VANHEY Christine",null,null,null,null,null,{"$f":"CodeCouleur","v":42}]
[null,null,null,null,null,null,null,{"$f":"CodeCouleur","v":2}]
[null,"VENTALON Gilbert",null,null,null,null,null,{"$f":"CodeCouleur","v":42}]
[null,null,null,null,null,null,null,{"$f":"CodeCouleur","v":2}]
[null,"WOSCIECHOWSKI Hélène",null,null,null,null,null,{"$f":"CodeCouleur","v":42}]